bitfinex/quotes_BTCUSD_20240819
["timestamp","ask_amount","ask_price","bid_price","bid_amount"]
[1724038959508,0.00704429,58819.0,58818.0,0.420233]
[1724038959635,0.00704429,58819.0,58818.0,0.434233]
[1724038959862,0.00704429,58819.0,58818.0,0.371033]
[1724038960063,0.00704429,58819.0,58818.0,0.379033]
[1724038960541,0.00704429,58819.0,58818.0,0.357033]
[1724038960945,0.00704429,58819.0,58818.0,0.368033]
[1724038961827,0.00704429,58819.0,58818.0,0.606055]
[1724038962033,0.00704429,58819.0,58818.0,0.668455]
[1724038962414,0.00704429,58819.0,58818.0,0.748455]
[1724038962671,0.00704429,58819.0,58818.0,0.762455]
[1724038962878,0.00704429,58819.0,58818.0,0.748455]
[1724038963087,0.00704429,58819.0,58818.0,0.737455]
[1724038963269,0.00704429,58819.0,58818.0,0.751455]
[1724038963473,0.00704429,58819.0,58818.0,0.749455]
[1724038963922,0.00704429,58819.0,58818.0,0.751455]
[1724038964761,0.00704429,58819.0,58818.0,0.764455]
[1724038965819,0.00704429,58819.0,58818.0,1.17403154]
[1724038970368,0.00704429,58819.0,58818.0,1.29023154]
[1724038974342,0.00204429,58819.0,58818.0,1.29023154]
[1724038974756,0.00204429,58819.0,58818.0,1.14783154]
[1724038978567,0.00204429,58819.0,58818.0,1.14873574]
[1724038979217,0.00204429,58819.0,58818.0,0.8609812]
[1724038979433,0.14164429,58819.0,58818.0,0.3849372]
[1724038980283,0.00204429,58819.0,58818.0,0.6229592]
[1724038982977,0.00204429,58819.0,58818.0,1.0025812]
[1724038983386,0.00204429,58819.0,58818.0,1.17413574]
[1724038992362,0.00204429,58819.0,58818.0,1.03253574]
[1724038994229,0.00204429,58819.0,58818.0,1.17783574]
[1724038996007,0.00204429,58819.0,58818.0,1.29403574]
[1724038997023,0.00305356,58820.0,58819.0,0.833063]
[1724038997231,0.00305356,58820.0,58819.0,1.14821754]
[1724038997432,0.00305356,58820.0,58819.0,1.24721754]
[1724038997888,0.00305356,58820.0,58819.0,1.24821754]
[1724038998130,0.00305356,58820.0,58819.0,1.24721754]
[1724038998930,0.00305356,58820.0,58819.0,1.26121754]
[1724038999132,0.00305356,58820.0,58819.0,1.25921754]
[1724038999337,0.00305356,58820.0,58819.0,1.27321754]
[1724039000163,0.00305356,58820.0,58819.0,1.26121754]
[1724039000375,0.00305356,58820.0,58819.0,1.26943754]
[1724039000580,0.00305356,58820.0,58819.0,1.28343754]
[1724039001582,0.00305356,58820.0,58819.0,1.22063754]
[1724039001791,0.00305356,58820.0,58819.0,1.14083754]
[1724039002611,0.00305356,58820.0,58819.0,1.12683754]
[1724039003245,0.00305356,58820.0,58819.0,1.11283754]
[1724039003650,0.00305356,58820.0,58819.0,1.14083754]
[1724039004080,0.0821,58825.0,58824.0,0.594995]
[1724039004081,0.08018475,58825.0,58824.0,0.594995]
[1724039005259,0.08018475,58825.0,58824.0,0.608995]
[1724039005640,0.08018475,58825.0,58824.0,0.622995]
[1724039013611,0.08100675,58825.0,58824.0,0.622995]
[1724039014122,0.08100675,58825.0,58824.0,0.384997]
[1724039014839,0.08100675,58825.0,58824.0,0.622995]
[1724039016234,0.08074956,58825.0,58824.0,0.622995]
[1724039020338,0.08074956,58825.0,58824.0,0.384997]
[1724039021094,0.38104356,58825.0,58824.0,0.028]
[1724039021334,0.73803456,58825.0,58824.0,0.028]
[1724039021587,0.86726051,58825.0,58824.0,0.028]
[1724039021834,0.98346051,58825.0,58824.0,0.028]
[1724039022102,0.85423456,58825.0,58824.0,0.014]
[1724039022363,1.04913447,58825.0,58824.0,0.014]
[1724039022618,0.99455391,58825.0,58824.0,0.014]
[1724039022867,0.75655991,58825.0,58824.0,0.025]
[1724039023375,0.75655991,58825.0,58818.0,0.1199142]
[1724039023376,0.0818,58822.0,58818.0,0.1199142]
[1724039023631,0.0509945,58821.0,58818.0,0.1199142]
[1724039024173,0.0619,58820.0,58818.0,0.1199142]
[1724039024667,0.200803,58822.0,58818.0,0.1199142]
[1724039025151,0.119006,58821.0,58818.0,0.0009042]
[1724039026144,0.119006,58821.0,58818.0,0.0139042]
[1724039026418,0.0818,58822.0,58818.0,0.2389252]
[1724039026658,0.0818,58822.0,58820.0,0.0009042]
[1724039029135,0.0818,58822.0,58820.0,0.0199042]
[1724039029390,0.0818,58822.0,58820.0,0.0059042]
[1724039029633,0.000822,58825.0,58821.0,0.1482]
[1724039029874,0.119819,58825.0,58821.0,0.267204]
[1724039030108,0.119819,58825.0,58821.0,0.119004]
[1724039030360,0.000822,58825.0,58821.0,0.238009]
[1724039030853,0.000822,58825.0,58823.0,0.119]
[1724039031825,0.000822,58825.0,58824.0,0.118999]
[1724039033176,0.000822,58825.0,58823.0,0.016]
[1724039033417,0.000822,58825.0,58823.0,0.122999]
[1724039033633,0.000822,58825.0,58824.0,0.013]
[1724039034568,0.000822,58825.0,58824.0,0.004]
[1724039035260,0.000822,58825.0,58824.0,0.118999]
[1724039035713,0.000822,58825.0,58824.0,0.122999]
[1724039036170,0.000822,58825.0,58824.0,0.265699]
[1724039036570,0.000822,58825.0,58824.0,0.279699]
[1724039037104,0.000822,58825.0,58824.0,0.517697]
[1724039037302,0.000822,58825.0,58824.0,0.525697]
[1724039038138,0.000822,58825.0,58824.0,0.517697]
[1724039038363,0.000822,58825.0,58824.0,0.698195]
[1724039038730,0.000822,58825.0,58824.0,0.616995]
[1724039038923,0.000822,58825.0,58824.0,0.118999]
[1724039039339,0.000822,58825.0,58824.0,0.142999]
[1724039039514,0.000822,58825.0,58824.0,0.128999]
[1724039040299,0.000822,58825.0,58824.0,0.142999]
[1724039041721,0.000822,58825.0,58824.0,0.618995]
[1724039041930,0.000822,58825.0,58824.0,1.119593]
[1724039042167,0.000822,58825.0,58824.0,0.765395]
[1724039042409,0.000822,58825.0,58824.0,0.527397]
[1724039042571,0.000822,58825.0,58824.0,0.380997]
[1724039046138,0.000822,58825.0,58824.0,0.142999]
[1724039050976,0.000822,58825.0,58824.0,0.380997]
[1724039051131,0.000822,58825.0,58824.0,0.461597]
[1724039051329,0.000822,58825.0,58824.0,0.524197]
[1724039051785,0.000822,58825.0,58824.0,0.762195]
[1724039052240,0.000822,58825.0,58824.0,1.17174754]
[1724039052446,0.000822,58825.0,58824.0,0.762195]
[1724039062707,0.000822,58825.0,58824.0,0.7630992]
[1724039063661,0.000822,58825.0,58824.0,1.17265174]
[1724039064333,0.000822,58825.0,58824.0,1.16265174]
[1724039064539,0.000822,58825.0,58824.0,1.17265174]
[1724039064745,0.000822,58825.0,58824.0,1.15865174]
[1724039064956,0.000822,58825.0,58824.0,1.17265174]
[1724039065820,0.000822,58825.0,58824.0,1.16265174]
[1724039066231,0.000822,58825.0,58824.0,1.17465174]
[1724039066638,0.000822,58825.0,58824.0,1.14865174]
[1724039066856,0.000822,58825.0,58824.0,1.16265174]
[1724039067085,0.000822,58825.0,58824.0,1.17665174]
[1724039067327,0.000822,58825.0,58824.0,1.16265174]
[1724039067729,0.000822,58825.0,58824.0,1.17665174]
[1724039067938,0.000822,58825.0,58824.0,1.14865174]
[1724039068135,0.000822,58825.0,58824.0,1.16265174]
[1724039068496,0.000822,58825.0,58824.0,0.7530992]
[1724039069179,0.000822,58825.0,58824.0,0.6904992]
[1724039069388,0.000822,58825.0,58824.0,0.3719012]
[1724039069806,0.000822,58825.0,58824.0,0.6098992]
[1724039070231,0.000822,58825.0,58824.0,0.3579012]
[1724039070359,0.000822,58825.0,58824.0,0.3719012]
[1724039070563,0.000822,58825.0,58824.0,0.3859012]
[1724039070768,0.000822,58825.0,58824.0,0.3719012]
[1724039070966,0.000822,58825.0,58824.0,0.3579012]
[1724039071156,0.000822,58825.0,58824.0,0.3859012]
[1724039071519,0.000822,58825.0,58824.0,0.6238992]
[1724039074460,0.000822,58825.0,58824.0,0.7060992]
[1724039075515,0.000822,58825.0,58824.0,1.17925174]
[1724039078641,0.000822,58825.0,58824.0,1.27925174]
[1724039079115,0.000822,58825.0,58824.0,1.51724974]
[1724039079565,0.000822,58825.0,58824.0,1.50424974]
[1724039079792,0.000822,58825.0,58824.0,1.51824974]
[1724039080037,0.000822,58825.0,58824.0,1.51724974]
[1724039080279,0.000822,58825.0,58824.0,1.51824974]
[1724039080475,0.000822,58825.0,58824.0,1.50424974]
[1724039080674,0.000822,58825.0,58824.0,1.51724974]
[1724039080880,0.000822,58825.0,58824.0,1.52020418]
[1724039081456,0.000822,58825.0,58824.0,1.52220418]
[1724039082243,0.000822,58825.0,58824.0,1.50820418]
[1724039083053,0.000822,58825.0,58824.0,1.49420418]
[1724039083483,0.000822,58825.0,58824.0,1.50820418]
[1724039083823,0.000822,58825.0,58824.0,1.49420418]
[1724039083997,0.000822,58825.0,58824.0,1.50420418]
[1724039084225,0.000822,58825.0,58824.0,1.51820418]
[1724039084423,0.000822,58825.0,58824.0,1.50420418]
[1724039084748,0.000822,58825.0,58824.0,1.52220418]
[1724039084950,0.000822,58825.0,58824.0,1.53042418]
[1724039085398,0.000822,58825.0,58824.0,1.52642418]
[1724039086687,0.000822,58825.0,58824.0,1.51242418]
[1724039086896,0.000822,58825.0,58824.0,1.52842418]
[1724039087100,0.000822,58825.0,58824.0,1.51442418]
[1724039087325,0.0659,58845.0,58838.0,0.501511]
[1724039087534,0.0816,58847.0,58838.0,1.26514754]
[1724039087762,0.0816,58847.0,58838.0,1.50308854]
[1724039088587,0.0816,58847.0,58838.0,1.51708854]
[1724039089671,0.0816,58847.0,58838.0,1.53008854]
[1724039089884,0.00822,58854.0,58838.0,1.53008854]
[1724039090103,0.17647956,58852.0,58851.0,0.973808]
[1724039090354,0.17647956,58852.0,58851.0,1.60040498]
[1724039090570,0.17647956,58852.0,58851.0,1.83829298]
[1724039090779,0.00822,58854.0,58853.0,0.97303444]
[1724039090992,0.00822,58854.0,58853.0,1.48246898]
[1724039091200,0.00822,58854.0,58853.0,1.48646898]
[1724039091412,0.00822,58854.0,58853.0,1.54093998]
[1724039091636,0.00822,58854.0,58853.0,1.54293998]
[1724039091844,0.00822,58854.0,58853.0,1.54093998]
[1724039092249,0.00822,58854.0,58853.0,1.55493998]
[1724039093106,0.00822,58854.0,58853.0,1.19473454]
[1724039093268,0.00822,58854.0,58853.0,1.31093454]
[1724039093476,0.00822,58854.0,58853.0,0.88025454]
[1724039093674,0.00822,58854.0,58853.0,0.99645454]
[1724039094422,0.00822,58854.0,58853.0,0.8389]
[1724039094630,0.00822,58854.0,58853.0,1.10413454]
[1724039094836,0.00822,58854.0,58853.0,1.11813454]
[1724039095042,0.00822,58854.0,58853.0,1.13213454]
[1724039097254,0.00822,58854.0,58853.0,1.27153454]
[1724039099827,0.08632,58854.0,58853.0,0.7227]
[1724039100238,0.00822,58854.0,58853.0,0.7227]
[1724039100453,0.00822,58854.0,58853.0,0.24694]
[1724039100872,0.00822,58854.0,58853.0,0.7227]
[1724039101292,0.00822,58854.0,58853.0,0.7087]
[1724039101708,0.00822,58854.0,58853.0,0.7227]
[1724039101924,0.00822,58854.0,58853.0,0.7087]
[1724039103167,0.00822,58854.0,58853.0,0.45682]
[1724039103378,0.00822,58854.0,58853.0,0.6947]
[1724039103590,0.00822,58854.0,58853.0,0.48182]
[1724039103997,0.00822,58854.0,58853.0,0.7087]
[1724039104415,0.00822,58854.0,58853.0,0.7197]
[1724039104847,0.00822,58854.0,58853.0,0.95758]
[1724039105062,0.00822,58854.0,58853.0,1.12913454]
[1724039105263,0.00822,58854.0,58853.0,0.89125454]
[1724039106103,0.00822,58854.0,58853.0,1.12913454]
[1724039107333,0.00822,58854.0,58853.0,1.21223454]
[1724039107951,0.00822,58854.0,58853.0,1.56703454]
[1724039108356,0.00822,58854.0,58853.0,1.80491454]
[1724039109176,0.00822,58854.0,58853.0,1.80591454]
[1724039109391,0.00822,58854.0,58853.0,1.79391454]
[1724039109596,0.00822,58854.0,58853.0,1.80791454]
[1724039110024,0.00822,58854.0,58853.0,1.79391454]
[1724039110234,0.00822,58854.0,58853.0,1.80791454]
[1724039110644,0.00822,58854.0,58853.0,1.25233454]
[1724039110860,0.00822,58854.0,58853.0,1.28033454]
[1724039111069,0.00822,58854.0,58853.0,1.21523454]
[1724039112946,0.00822,58854.0,58853.0,1.13213454]
[1724039116930,0.00822,58854.0,58853.0,0.14694]
[1724039117149,0.08382,58854.0,58853.0,0.14694]
[1724039117354,0.08382,58854.0,58853.0,0.39982]
[1724039117571,0.08382,58854.0,58853.0,0.16194]
[1724039117774,0.08382,58854.0,58853.0,0.14794]
[1724039117983,0.266158,58854.0,58853.0,0.029]
[1724039118193,0.14722,58854.0,58853.0,0.029]
[1724039118408,0.14722,58854.0,58853.0,0.16194]
[1724039118614,0.14722,58854.0,58853.0,0.14794]
[1724039118817,0.14722,58854.0,58853.0,0.16194]
[1724039119022,0.14681098,58854.0,58853.0,0.043]
[1724039119434,0.14681098,58854.0,58853.0,0.015]
[1724039119846,0.14681098,58854.0,58853.0,0.037]
[1724039120254,0.14681098,58854.0,58853.0,0.023]
[1724039120457,0.14681098,58854.0,58853.0,0.037]
[1724039124408,0.26574898,58854.0,58853.0,0.037]
[1724039124610,0.55480838,58854.0,58853.0,0.037]
[1724039124812,0.89451081,58854.0,58853.0,0.037]
[1724039125216,0.89451081,58854.0,58853.0,0.0379042]
[1724039126892,0.84332741,58854.0,58853.0,0.0379042]
[1724039128789,1.132867,58854.0,58853.0,0.0379042]
[1724039128993,1.15500984,58854.0,58853.0,0.0379042]
[1724039129619,1.10420341,58854.0,58853.0,0.0379042]
[1724039129825,0.86632741,58854.0,58853.0,0.0239042]
[1724039130384,0.86632741,58854.0,58853.0,0.0159042]
[1724039131306,1.22812538,58854.0,58853.0,0.0169042]
[1724039131511,1.22812538,58854.0,58853.0,0.0159042]
[1724039131868,1.24341017,58854.0,58853.0,0.0159042]
[1724039132201,1.24341017,58854.0,58853.0,0.0169042]
[1724039132202,1.24541017,58854.0,58853.0,0.0169042]
[1724039132428,1.24641017,58854.0,58853.0,0.0169042]
[1724039132649,1.29622512,58854.0,58853.0,0.0169042]
[1724039132802,1.29422512,58854.0,58853.0,0.0229042]
[1724039133008,1.29422512,58854.0,58853.0,0.0159042]
[1724039133267,1.29622512,58854.0,58853.0,0.0159042]
[1724039133411,1.29722512,58854.0,58853.0,0.0159042]
[1724039133790,1.32063259,58854.0,58853.0,0.0169042]
[1724039133910,1.24441017,58854.0,58853.0,0.0159042]
[1724039134110,1.3226383,58854.0,58853.0,0.0189042]
[1724039134315,1.24841017,58854.0,58853.0,0.0189042]
[1724039134556,1.32462348,58854.0,58853.0,0.0159042]
[1724039134761,1.32262348,58854.0,58853.0,0.0179042]
[1724039134966,1.19870151,58854.0,58853.0,0.0179042]
[1724039135163,1.17329593,58854.0,58853.0,0.0179042]
[1724039135336,1.17129593,58854.0,58853.0,0.0179042]
[1724039135827,1.17529593,58854.0,58853.0,0.0189042]
[1724039136021,1.1294882,58854.0,58853.0,0.0189042]
[1724039136230,1.18028826,58854.0,58853.0,0.0169042]
[1724039136445,1.34589417,58854.0,58853.0,0.0169042]
[1724039136861,1.34589417,58854.0,58853.0,0.0159042]
[1724039136862,1.34089417,58854.0,58853.0,0.0159042]
[1724039137076,1.33889417,58854.0,58853.0,0.0159042]
[1724039137266,1.34389417,58854.0,58853.0,0.0189042]
[1724039137898,1.34389417,58854.0,58853.0,0.0159042]
[1724039138100,1.34389417,58854.0,58853.0,0.0179042]
[1724039138849,1.34189417,58854.0,58853.0,0.0179042]
[1724039139059,1.17028826,58854.0,58853.0,0.0179042]
[1724039139254,1.1194882,58854.0,58853.0,0.0159042]
[1724039139481,0.6257362,58854.0,58853.0,0.0169042]
[1724039139835,0.8636122,58854.0,58853.0,0.0199042]
[1724039140037,0.8586122,58854.0,58853.0,0.0189042]
[1724039140398,0.8636122,58854.0,58853.0,0.0159042]
[1724039140801,0.6257362,58854.0,58853.0,0.0229042]
[1724039141713,0.8586122,58854.0,58853.0,0.0229042]
[1724039141888,0.6207362,58854.0,58853.0,0.0229042]
[1724039142091,0.8606122,58854.0,58853.0,0.0229042]
[1724039142318,0.6227362,58854.0,58853.0,0.0229042]
[1724039142525,0.8606122,58854.0,58853.0,0.0159042]
[1724039142749,0.6207362,58854.0,58853.0,0.0159042]
[1724039142951,0.6207362,58854.0,58853.0,0.0239042]
[1724039143152,0.6217362,58854.0,58853.0,0.0239042]
[1724039145742,0.6207362,58854.0,58853.0,0.0239042]
[1724039145937,0.02309577,58854.0,58853.0,0.0239042]
[1724039146142,0.02409577,58854.0,58853.0,0.4389242]
[1724039146368,0.02409577,58854.0,58853.0,0.5212242]
[1724039146567,0.00881098,58854.0,58853.0,0.5292242]
[1724039146796,0.00881098,58854.0,58853.0,0.2833442]
[1724039146797,0.02450066,58854.0,58853.0,0.2833442]
[1724039146919,0.00881098,58854.0,58853.0,0.2833442]
[1724039147147,0.00881098,58854.0,58853.0,0.5312242]
[1724039147359,0.00881098,58854.0,58853.0,0.0259042]
[1724039147932,0.12674898,58854.0,58853.0,0.0399042]
[1724039148156,0.1425236,58854.0,58853.0,0.0399042]
[1724039148379,0.1425236,58854.0,58853.0,0.0409042]
[1724039148586,0.42686046,58854.0,58853.0,0.0409042]
[1724039148734,0.66473646,58854.0,58853.0,0.0399042]
[1724039149138,0.76656289,58854.0,58853.0,0.0469042]
[1724039149372,0.72010203,58854.0,58853.0,0.0469042]
[1724039149609,0.79900203,58854.0,58853.0,0.0469042]
[1724039150417,0.85930203,58854.0,58853.0,0.0469042]
[1724039156123,1.09717803,58854.0,58853.0,0.0469042]
[1724039156341,1.17102494,58854.0,58853.0,0.0469042]
[1724039156533,1.33599868,58854.0,58853.0,0.0469042]
[1724039156738,1.28515014,58854.0,58853.0,0.0469042]
[1724039156952,1.36133991,58854.0,58853.0,0.0469042]
[1724039157175,1.41881451,58854.0,58853.0,0.0469042]
[1724039157387,1.41881451,58854.0,58853.0,0.0399042]
[1724039157388,1.82829144,58854.0,58853.0,0.0399042]
[1724039157592,1.82829144,58854.0,58853.0,0.0159042]
[1724039157795,2.19891884,58854.0,58853.0,0.0159042]
[1724039157998,1.98267099,58854.0,58853.0,0.0239042]
[1724039158203,1.98267099,58854.0,58853.0,0.0159042]
[1724039158662,1.98267099,58854.0,58853.0,0.0169042]
[1724039158663,1.98767099,58854.0,58853.0,0.0169042]
[1724039159240,1.83029144,58854.0,58853.0,0.0159042]
[1724039159466,1.98267099,58854.0,58853.0,0.0159042]
[1724039160010,2.19729482,58854.0,58853.0,0.0159042]
[1724039160265,1.98267099,58854.0,58853.0,0.0159042]
[1724039160591,2.05204424,58854.0,58853.0,0.0169042]
[1724039160873,2.04804424,58854.0,58853.0,0.0169042]
[1724039161093,1.58312861,58854.0,58853.0,0.0169042]
[1724039161283,1.43044333,58854.0,58853.0,0.0169042]
[1724039162112,1.37014333,58854.0,58853.0,0.0169042]
[1724039163137,0.95236733,58854.0,58853.0,0.0169042]
[1724039163271,0.89789273,58854.0,58853.0,0.0169042]
[1724039163913,0.87489273,58854.0,58853.0,0.0169042]
[1724039165041,0.80350775,58854.0,58853.0,0.0169042]
[1724039165818,0.97787397,58854.0,58853.0,0.0169042]
[1724039166730,0.97087397,58854.0,58853.0,0.0159042]
[1724039166965,0.97487397,58854.0,58853.0,0.0199042]
[1724039167134,1.10107743,58854.0,58853.0,0.0199042]
[1724039167334,0.97487397,58854.0,58853.0,0.0199042]
[1724039167547,0.87298559,58854.0,58853.0,0.0199042]
[1724039167929,0.73702445,58854.0,58853.0,0.1681042]
[1724039168339,0.63510959,58854.0,58853.0,0.0199042]
[1724039169288,0.98228294,58854.0,58853.0,0.0199042]
[1724039169522,1.04798294,58854.0,58853.0,0.0199042]
[1724039170483,1.29935484,58854.0,58853.0,0.0199042]
[1724039170691,1.69161919,58854.0,58853.0,0.0199042]
[1724039170900,1.84455679,58854.0,58853.0,0.0199042]
[1724039171106,1.69161919,58854.0,58853.0,0.0199042]
[1724039171861,1.69361919,58854.0,58853.0,0.0199042]
[1724039172113,1.93349519,58854.0,58853.0,0.0199042]
[1724039172358,1.99989519,58854.0,58853.0,0.0199042]
[1724039172761,1.99490386,58854.0,58853.0,0.0199042]
[1724039172965,1.75302786,58854.0,58853.0,0.0199042]
[1724039173812,1.75502786,58854.0,58853.0,0.0199042]
[1724039174018,1.92908392,58854.0,58853.0,0.0199042]
[1724039174435,1.99490386,58854.0,58853.0,0.0199042]
[1724039174848,1.99074947,58854.0,58853.0,0.0199042]
[1724039175487,1.99074947,58854.0,58832.0,0.58717509]
[1724039175488,0.001,58838.0,58832.0,0.58717509]
[1724039175710,0.001,58838.0,58832.0,0.51177509]
[1724039175711,0.11898,58833.0,58832.0,0.51177509]
[1724039175914,0.11898,58833.0,58830.0,0.1366]
[1724039175915,0.356953,58831.0,58830.0,0.1366]
[1724039176136,0.59809715,58831.0,58830.0,0.1366]
[1724039176356,0.55420692,58831.0,58830.0,0.1366]
[1724039176777,0.47777539,58831.0,58830.0,0.1366]
[1724039176983,0.55420523,58831.0,58830.0,0.1366]
[1724039177188,0.23980639,58831.0,58830.0,0.1366]
[1724039177394,0.47777539,58831.0,58830.0,0.1366]
[1724039177651,0.29073957,58831.0,58830.0,0.1366]
[1724039177873,0.23980639,58831.0,58830.0,0.1386]
[1724039178280,0.01567455,58831.0,58830.0,0.1366]
[1724039178486,0.01567455,58831.0,58830.0,0.255586]
[1724039178723,0.05093318,58835.0,58832.0,0.199182]
[1724039178942,0.05093318,58835.0,58830.0,0.24097]
[1724039178943,0.05093318,58835.0,58834.0,0.0802]
[1724039179152,0.05091767,58835.0,58834.0,0.0802]
[1724039179564,0.05091767,58836.0,58834.0,0.0802]
[1724039179771,0.33977335,58839.0,58834.0,0.0802]
[1724039179772,0.16989067,58837.0,58834.0,0.0802]
[1724039180005,0.05091767,58837.0,58834.0,0.0802]
[1724039180241,0.16988867,58838.0,58835.0,0.0614]
[1724039181145,0.120974,58837.0,58835.0,0.0614]
[1724039181392,0.002,58837.0,58835.0,0.0614]
[1724039181808,0.118971,58838.0,58835.0,0.0614]
[1724039182906,0.118971,58838.0,58835.0,0.0664]
[1724039183146,0.118973,58837.0,58835.0,0.0664]
[1724039183622,0.118973,58837.0,58835.0,0.0614]
[1724039184113,0.118974,58836.0,58835.0,0.0614]
[1724039184586,0.001,58838.0,58835.0,0.0694]
[1724039184845,0.01554073,58836.0,58835.0,0.0694]
[1724039185094,0.118972,58837.0,58835.0,0.0694]
[1724039185337,0.13451473,58836.0,58835.0,0.0694]
[1724039185845,0.01554073,58836.0,58835.0,0.0614]
[1724039186080,0.01554073,58836.0,58835.0,0.0704]
[1724039186625,0.01554073,58836.0,58835.0,0.258776]
[1724039186865,0.01554073,58836.0,58835.0,0.508729]
[1724039187131,0.16987667,58844.0,58840.0,0.141]
[1724039187675,0.01554047,58843.0,58840.0,0.141]
[1724039187880,0.13450047,58843.0,58840.0,0.141]
[1724039188595,0.01554047,58843.0,58840.0,0.141]
[1724039188864,0.118963,58842.0,58840.0,0.141]
[1724039189140,0.01554047,58843.0,58840.0,0.142]
[1724039189380,0.13450447,58842.0,58840.0,0.142]
[1724039189887,0.13450447,58842.0,58840.0,0.146]
[1724039190125,0.13450447,58842.0,58840.0,0.142]
[1724039190357,0.13450447,58842.0,58840.0,0.152]
[1724039190593,0.13450447,58842.0,58840.0,0.151]
[1724039190834,0.13450447,58842.0,58840.0,0.144]
[1724039191318,0.118964,58841.0,58840.0,0.155]
[1724039191587,0.356893,58841.0,58840.0,0.155]
[1724039191880,0.4762044,58841.0,58840.0,0.014]
[1724039192110,0.77447125,58841.0,58840.0,0.014]
[1724039192315,0.7141334,58841.0,58840.0,0.011]
[1724039192534,0.356929,58835.0,58834.0,0.1393]
[1724039192986,0.37253697,58835.0,58834.0,0.1393]
[1724039193191,0.13458397,58835.0,58834.0,0.1393]
[1724039194052,0.13458397,58835.0,58834.0,0.1503]
[1724039194275,0.13458397,58835.0,58834.0,0.1423]
[1724039194676,0.13458397,58835.0,58834.0,0.1393]
[1724039195088,0.13458397,58835.0,58834.0,0.1423]
[1724039195499,0.13458397,58835.0,58834.0,0.1393]
[1724039195674,0.13458397,58835.0,58834.0,0.1503]
[1724039195904,0.13458397,58835.0,58834.0,0.1533]
[1724039196111,0.37253697,58835.0,58834.0,0.1423]
[1724039196315,0.37253697,58835.0,58834.0,0.1533]
[1724039198242,0.13458397,58835.0,58834.0,0.1533]
[1724039198877,0.13458397,58835.0,58834.0,0.1542042]
[1724039199110,0.20071892,58835.0,58834.0,0.1542042]
[1724039199329,0.37253697,58835.0,58834.0,0.1542042]
[1724039199798,0.71505999,58835.0,58834.0,0.0149042]
[1724039200034,0.73171643,58835.0,58834.0,0.0149042]
[1724039200262,0.80559397,58835.0,58834.0,0.0149042]
[1724039201669,0.92785481,58835.0,58834.0,0.0149042]
[1724039202415,0.927855,58835.0,58834.0,0.0149042]
[1724039202618,0.80559416,58835.0,58834.0,0.0149042]
[1724039202856,0.54464116,58835.0,58834.0,0.0149042]
[1724039203271,0.49376362,58835.0,58834.0,0.0149042]
[1724039203976,0.73171662,58835.0,58834.0,0.0149042]
[1724039205864,0.75471662,58835.0,58834.0,0.0149042]
[1724039206310,0.75471654,58835.0,58834.0,0.0149042]
[1724039206731,0.73805999,58835.0,58834.0,0.0149042]
[1724039207156,0.80562738,58835.0,58834.0,0.0149042]
[1724039207355,0.75471654,58835.0,58834.0,0.0149042]
[1724039208383,0.15124052,58835.0,58834.0,0.0930042]
[1724039208593,0.38919352,58835.0,58834.0,0.0930042]
[1724039208798,0.15124052,58835.0,58834.0,0.0930042]
[1724039209002,0.01560797,58835.0,58834.0,0.0930042]
[1724039209210,0.01560797,58835.0,58834.0,0.2722822]
[1724039209421,0.01560797,58835.0,58834.0,0.7481962]
[1724039209636,0.118959,58844.0,58839.0,0.1384]
[1724039209843,0.11896,58843.0,58839.0,0.257368]
[1724039210056,0.13561595,58842.0,58839.0,0.1384]
[1724039210276,0.01665295,58841.0,58839.0,0.1384]
[1724039210482,0.10377564,58840.0,58835.0,0.1384]
[1724039210686,0.10377564,58840.0,58834.0,0.0741042]
[1724039210687,0.25459095,58839.0,58834.0,0.0741042]
[1724039210921,0.118975,58836.0,58834.0,0.0741042]
[1724039211153,0.01665295,58835.0,58834.0,0.0741042]
[1724039211394,0.03221739,58835.0,58834.0,0.0741042]
[1724039212158,0.03221739,58835.0,58834.0,0.0631042]
[1724039212633,0.03221739,58835.0,58834.0,0.1456042]
[1724039213370,0.03221739,58835.0,58834.0,0.1566042]
[1724039213801,0.03221739,58835.0,58834.0,0.1586042]
[1724039214648,0.15119339,58835.0,58834.0,0.1586042]
[1724039214852,0.03221739,58835.0,58834.0,0.1586042]
[1724039218322,0.0322185,58835.0,58834.0,0.1586042]
[1724039218524,0.01556444,58835.0,58834.0,0.1586042]
[1724039218932,0.01665411,58835.0,58834.0,0.1586042]
[1724039219341,0.03223025,58835.0,58834.0,0.1586042]
[1724039220215,0.03223029,58835.0,58834.0,0.1586042]
[1724039221611,0.03223029,58835.0,58834.0,0.2775822]
[1724039221814,0.01557614,58835.0,58834.0,0.2775822]
[1724039222011,0.01665384,58835.0,58834.0,0.2775822]
[1724039222218,0.16992514,58839.0,58835.0,0.118976]
[1724039222426,0.01665383,58838.0,58835.0,0.118976]
[1724039222629,0.01665383,58837.0,58835.0,0.118976]
[1724039222835,0.01665383,58836.0,58835.0,0.118976]
[1724039223037,0.01665383,58836.0,58835.0,0.500529]
[1724039223257,0.05095614,58841.0,58839.0,0.262568]
[1724039223467,0.01665295,58840.0,58839.0,0.260568]
[1724039225235,0.05095614,58842.0,58839.0,0.260568]
[1724039225441,0.01665296,58841.0,58839.0,0.260568]
[1724039225685,0.01665296,58840.0,58839.0,0.265568]
[1724039226239,0.01965296,58840.0,58839.0,0.265568]
[1724039227113,0.01965296,58840.0,58839.0,0.741442]
[1724039227548,0.003,58840.0,58839.0,0.741442]
[1724039230627,0.003,58840.0,58839.0,0.857442]
[1724039231269,0.003,58840.0,58839.0,1.095379]
[1724039232212,0.003,58840.0,58839.0,1.090379]
[1724039232394,0.003,58840.0,58839.0,1.27593354]
[1724039232771,0.000822,58853.0,58852.0,0.257042]
[1724039232974,0.03312892,58853.0,58852.0,0.257042]
[1724039233705,0.01648005,58853.0,58852.0,0.1381]
[1724039233917,0.03312893,58853.0,58852.0,0.1381]
[1724039234119,0.03612893,58853.0,58851.0,0.118944]
[1724039234327,0.01664888,58852.0,58851.0,0.118944]
[1724039234532,0.01948005,58853.0,58851.0,0.118944]
[1724039234800,0.003822,58853.0,58851.0,0.118944]
[1724039235011,0.01565805,58852.0,58851.0,0.118944]
[1724039235212,0.03230707,58852.0,58851.0,0.118944]
[1724039235348,0.01565805,58852.0,58851.0,0.118944]
[1724039235550,0.01565805,58852.0,58845.0,0.1381]
[1724039235551,0.03230733,58852.0,58845.0,0.1381]
[1724039235747,0.01664958,58851.0,58847.0,0.118951]